fUST/lending_fUST_20251115
["ID","MTS","AMOUNT","RATE_DAILY","PERIOD"]
[394014215,1763185840008,-194.72792766,0.00040984,120]
[394014216,1763185840018,-151.0,0.00040984,120]
[394014217,1763185840027,-250.0,0.00040984,120]
[394014218,1763185840035,-331.40535128,0.00040984,120]
[394014219,1763185840044,-151.0,0.00040984,120]
[394014220,1763185840053,-201.93286099,0.00040984,120]
[394014221,1763185840063,-167.42579836,0.00040984,120]
[394014222,1763185840072,-250.0,0.00040984,120]
[394014223,1763185840081,-151.0,0.00040984,120]
[394014224,1763185840090,-231.55234187,0.00040984,120]
[394014225,1763185840100,-250.0,0.00040984,120]
[394014226,1763185840109,-250.0,0.00040984,120]
[394014227,1763185840118,-151.0,0.00040984,120]
[394014228,1763185840128,-250.0,0.00040984,120]
[394014229,1763185840136,-151.0,0.00040984,120]
[394014230,1763185840145,-250.0,0.00040984,120]
[394014231,1763185840155,-250.0,0.00040984,120]
[394014232,1763185840165,-151.0,0.00040984,120]
[394014233,1763185840174,-250.0,0.00040984,120]
[394014234,1763185840184,-250.0,0.00040984,120]
[394014235,1763185840193,-151.0,0.00040984,120]
[394014236,1763185840203,-250.0,0.00040984,120]
[394014237,1763185840213,-250.0,0.00040984,120]
[394014238,1763185840223,-151.0,0.00040984,120]
[394014239,1763185840232,-295.02746456,0.00040984,120]
[394014240,1763185840241,-250.0,0.00040984,120]
[394014241,1763185840251,-151.0,0.00040984,120]
[394014242,1763185840261,-248.54192169,0.00040984,120]
[394014243,1763185840270,-300.0,0.00040986,7]
[394014244,1763185840279,-115818.70707247,0.00041,2]
[394014245,1763185840289,-166.0,0.00041,120]
[394014246,1763185840298,-160.0,0.00041,90]
[394014247,1763185840308,-150.08,0.00041085,120]
[394014248,1763185840318,-999.0,0.00041095,120]
[394014249,1763185840327,-500.0,0.00041096,120]
[394014250,1763185840337,-183.61852445,0.00041096,2]
[394014251,1763185840346,-150.08,0.00041185,120]
[394014252,1763185840356,-5157.51193414,0.00041259,28]
[394014253,1763185840366,-150.08,0.00041285,120]
[394014254,1763185840375,-172.709939,0.00041299,2]
[394014255,1763185840384,-500.0,0.0004137,120]
[394014256,1763185840393,-150.08,0.00041385,120]
[394014257,1763185840402,-374.5390721,0.00041425,2]
[394014258,1763185840411,-821.50950741,0.00041433,14]
[394014259,1763185840420,-150.08,0.00041485,120]
[394014260,1763185840430,-521.70870372,0.00041505,2]
[394014261,1763185840440,-734.22771344,0.00041521,10]
[394014262,1763185840449,-507.1083366,0.00041521,10]
[394014263,1763185840458,-150.08,0.00041585,120]
[394014264,1763185840467,-500.0,0.00041644,120]
[394014265,1763185840477,-150.08,0.00041685,120]
[394014266,1763185840486,-150.08,0.00041785,120]
[394014267,1763185840496,-150.08,0.00041885,120]
[394014268,1763185840505,-1913.19,0.000419,14]
[394014269,1763185840514,-500.0,0.00041918,120]
[394014270,1763185840524,-150.08,0.00041985,120]
[394014271,1763185840533,-170.0,0.00042,120]
[394014272,1763185840542,-169.3980226,0.00042,35]
[394014273,1763185840551,-1528.87,0.00042,120]
[394014274,1763185840561,-201.19562226,0.00042,120]
[394014275,1763185840570,-917.63371321,0.00042,120]
[394014276,1763185840579,-359.40697938,0.00042007,26]
[394014277,1763185840589,-150.08,0.00042085,120]
[394014278,1763185840599,-150.08,0.00042185,120]
[394014279,1763185840609,-500.0,0.00042192,120]
[394014280,1763185840618,-168.0,0.00042206,120]
[394014281,1763185840627,-150.08,0.00042285,120]
[394014282,1763185840636,-168.0,0.00042341,2]
[394014283,1763185840645,-150.08,0.00042385,120]
[394014284,1763185840654,-164.2237678,0.00042411,30]
[394014285,1763185840664,-500.0,0.00042466,120]
[394014286,1763185840673,-150.08,0.00042485,120]
[394014287,1763185840682,-150.08,0.00042585,120]
[394014288,1763185840692,-150.08,0.00042685,120]
[394014289,1763185840701,-164.2237678,0.00042712,30]
[394014290,1763185840710,-500.0,0.0004274,120]
[394014291,1763185840720,-150.08,0.00042785,120]
[394014292,1763185840729,-172.709939,0.00042866,20]
[394014293,1763185840739,-406.49,0.00042885,15]
[394014294,1763185840747,-150.08,0.00042885,120]
[394014295,1763185840757,-164.2237678,0.00042904,30]
[394014296,1763185840766,-164.2237678,0.00042904,30]
[394014297,1763185840775,-150.08,0.00042985,120]
[394014298,1763185840785,-500.0,0.00043014,120]
[394014299,1763185840794,-150.08,0.00043085,120]
[394014300,1763185840803,-160.0,0.00043151,90]
[394014301,1763185840812,-150.08,0.00043185,120]
[394014302,1763185840822,-1966.4424,0.0004322,30]
[394014303,1763185840832,-150.08,0.00043285,120]
[394014304,1763185840846,-500.0,0.00043288,120]
[394014305,1763185840855,-917.63371321,0.000433,120]
[394014306,1763185840864,-328.4475356,0.00043342,30]
[394014307,1763185840875,-328.4475356,0.00043342,30]
[394014308,1763185840884,-164.2237678,0.00043342,30]
[394014309,1763185840893,-164.2237678,0.00043342,30]
[394014310,1763185840902,-164.2237678,0.00043342,30]
[394014311,1763185840912,-164.2237678,0.00043342,30]
[394014312,1763185840923,-164.2237678,0.00043342,30]
[394014313,1763185840934,-167.6657624,0.00043342,30]
[394014314,1763185840943,-150.08,0.00043385,120]
[394014315,1763185840952,-1913.19,0.000434,14]
[394014316,1763185840962,-150.08,0.00043485,120]
[394014317,1763185840971,-500.0,0.00043562,120]
[394014318,1763185840981,-710.97719485,0.00043562,120]
[394014319,1763185840991,-150.25567808,0.00043585,120]
[394014320,1763185841000,-200.0,0.0004362,120]
[394014321,1763185841009,-172.709939,0.00043696,7]
[394014322,1763185841019,-300.0,0.00043726,30]
[394014323,1763185841028,-551.22004873,0.00043765,3]
[394014324,1763185841037,-279.64212073,0.00043765,3]
[394014325,1763185841047,-1000.0,0.000438,90]
[394014326,1763185841056,-5157.51193414,0.00043818,28]
[394014327,1763185841065,-999.0,0.00043835,120]
[394014328,1763185841075,-500.0,0.00043836,120]
[394014329,1763185841084,-199.0,0.00044109,14]
[394014330,1763185841094,-500.0,0.0004411,120]
[394014331,1763185841104,-160.0,0.0004417,3]
[394014332,1763185841114,-168.0,0.00044317,120]
[394014333,1763185841123,-500.0,0.00044384,120]
[394014334,1763185841132,-917.63371321,0.000446,120]
[394014335,1763185841142,-5207.8167311,0.00044609,2]
[394014336,1763185841151,-1413.1712067,0.00044609,2]
[394014337,1763185841160,-500.0,0.00044658,120]
[394014338,1763185841169,-160.0,0.00044928,4]
[394014339,1763185841179,-500.0,0.00044932,120]
[394014340,1763185841188,-686.5156803,0.00044986,30]
[394014341,1763185841197,-20000.0,0.00045,120]
[394014342,1763185841206,-500.0,0.00045205,120]
[394014343,1763185841216,-1913.19,0.000454,14]
[394014344,1763185841225,-199.0,0.00045479,15]
[394014345,1763185841235,-500.0,0.00045479,120]
[394014346,1763185841244,-160.0,0.00045687,5]
[394014347,1763185841253,-1162.0209812,0.00045732,2]
[394014348,1763185841262,-315.3211176,0.00045732,2]
[394014349,1763185841271,-500.0,0.00045753,120]
[394014350,1763185841280,-4426.0,0.00046015,120]
[394014351,1763185841289,-500.0,0.00046027,120]
[394014352,1763185841300,-1132.0,0.00046123,2]
[394014353,1763185841309,-190.809384,0.00046143,2]
[394014354,1763185841319,-400.0,0.00046192,60]
[394014355,1763185841328,-500.0,0.00046301,120]
[394014356,1763185841337,-206.0,0.0004635,71]
[394014357,1763185841347,-5157.51193414,0.00046377,28]
[394014358,1763185841356,-1019.353,0.00046426,2]
[394014359,1763185841365,-632.921,0.00046426,2]
[394014360,1763185841375,-2149.0,0.00046426,2]
[394014361,1763185841383,-160.0,0.00046446,6]
[394014362,1763185841392,-2000.0,0.00046545,21]
[394014363,1763185841401,-300.0,0.00046571,90]
[394014364,1763185841411,-300.0,0.00046571,90]
[394014365,1763185841419,-300.0,0.00046571,90]
[394014366,1763185841428,-300.0,0.00046571,90]
[394014367,1763185841437,-300.0,0.00046571,90]
[394014368,1763185841446,-300.0,0.00046571,90]
[394014369,1763185841455,-300.0,0.00046571,90]
[394014370,1763185841464,-300.0,0.00046571,90]
[394014371,1763185841474,-999.0,0.00046575,120]
[394014372,1763185841483,-500.0,0.00046575,120]
[394014373,1763185841492,-963.7173412,0.00046621,2]
[394014374,1763185841501,-1132.0,0.00046623,7]
[394014375,1763185841510,-522.23041243,0.00046639,2]
[394014376,1763185841519,-172.709939,0.00046842,20]
[394014377,1763185841529,-199.0,0.00046849,16]
[394014378,1763185841537,-500.0,0.00046849,120]
[394014379,1763185841546,-166.0,0.00047,120]
[394014380,1763185841555,-500.0,0.00047123,120]
[394014381,1763185841564,-160.0,0.00047205,7]
[394014382,1763185841573,-1913.19,0.000473,14]
[394014383,1763185841582,-500.0,0.00047397,120]
[394014384,1763185841591,-172.709939,0.00047639,2]
[394014385,1763185841601,-172.709939,0.00047805,60]
[394014386,1763185841610,-160.0,0.00047964,8]
[394014387,1763185841619,-400.0,0.00048,120]
[394014388,1763185841628,-215.0344046,0.00048193,2]
[394014389,1763185841637,-172.5,0.00048219,120]
[394014390,1763185841646,-199.0,0.00048219,17]
[394014391,1763185841656,-300.3678215,0.00048274,30]
[394014392,1763185841665,-306.9052638,0.00048274,30]
[394014393,1763185841674,-300.856356,0.00048274,30]
[394014394,1763185841683,-300.3678215,0.00048274,30]
[394014395,1763185841692,-249.29057005,0.00048573,2]
[394014396,1763185841701,-158.166004,0.00048581,2]
[394014397,1763185841710,-151.0,0.00048583,120]
[394014398,1763185841719,-151.0,0.00048583,120]
[394014399,1763185841727,-397.406166,0.00048583,120]
[394014400,1763185841736,-397.406166,0.00048583,120]
[394014401,1763185841746,-397.406166,0.00048583,120]
[394014402,1763185841755,-397.406166,0.00048583,120]
[394014403,1763185841764,-151.0,0.00048583,120]
[394014404,1763185841773,-151.0,0.00048583,120]
[394014405,1763185841782,-151.0,0.00048583,120]
[394014406,1763185841791,-151.0,0.00048583,120]
[394014407,1763185841800,-305.024795,0.00048583,120]
[394014408,1763185841809,-305.024795,0.00048583,120]
[394014409,1763185841818,-305.024795,0.00048583,120]
[394014410,1763185841827,-305.024795,0.00048583,120]
[394014411,1763185841840,-221.514745,0.00048583,120]
[394014412,1763185841851,-151.0,0.00048583,120]
[394014413,1763185841860,-151.0,0.00048583,120]
[394014414,1763185841870,-151.0,0.00048583,120]
[394014415,1763185841879,-151.0,0.00048583,120]
[394014416,1763185841889,-151.0,0.00048583,120]
[394014417,1763185841899,-151.0,0.00048583,120]
[394014418,1763185841911,-151.0,0.00048583,120]
[394014419,1763185841920,-151.0,0.00048583,120]
[394014420,1763185841930,-151.0,0.00048583,120]
[394014421,1763185841940,-151.0,0.00048583,120]
[394014422,1763185841949,-151.0,0.00048583,7]
[394014423,1763185841959,-151.0,0.00048583,7]
[394014424,1763185841967,-151.0,0.00048583,7]
[394014425,1763185841977,-151.0,0.00048583,7]
[394014426,1763185841986,-963.981427,0.00048583,120]
[394014427,1763185841995,-151.0,0.00048583,120]
[394014428,1763185842004,-963.981427,0.00048583,120]
[394014429,1763185842013,-963.981427,0.00048583,120]
[394014430,1763185842023,-963.981427,0.00048583,120]
[394014431,1763185842032,-151.0,0.00048583,30]
[394014432,1763185842041,-154.068842,0.00048583,120]
[394014433,1763185842050,-247.917563,0.00048583,120]
[394014434,1763185842060,-154.54474,0.00048583,120]
[394014435,1763185842069,-247.917563,0.00048583,120]
[394014436,1763185842079,-247.917563,0.00048583,120]
[394014437,1763185842088,-397.122594,0.00048583,120]
[394014438,1763185842098,-376.510488,0.00048583,120]
[394014439,1763185842107,-247.917563,0.00048583,120]
[394014440,1763185842116,-397.122594,0.00048583,120]
[394014441,1763185842126,-376.510488,0.00048583,120]
[394014442,1763185842136,-397.122594,0.00048583,120]
[394014443,1763185842145,-376.510488,0.00048583,120]
[394014444,1763185842199,-397.122594,0.00048583,120]
[394014445,1763185842209,-161.503181,0.00048583,120]
[394014446,1763185842218,-376.510488,0.00048583,120]
[394014447,1763185842227,-222.029966,0.00048583,120]
[394014448,1763185842236,-152.154092,0.00048583,120]
[394014450,1763185842245,-154.800377,0.00048583,120]
[394014451,1763185842254,-151.0,0.00048583,2]
[394014452,1763185842262,-151.0,0.00048583,120]
[394014453,1763185842271,-166.973417,0.00048583,120]
[394014454,1763185842280,-151.0,0.00048583,120]
[394014455,1763185842289,-151.0,0.00048583,120]
[394014456,1763185842297,-151.0,0.00048583,120]
[394014457,1763185842306,-151.0,0.00048583,120]
[394014458,1763185842315,-154.031876,0.00048583,120]
[394014459,1763185842324,-7768.4323246,0.00048583,2]
[394014460,1763185842332,-88888.0,0.00048583,120]
[394014461,1763185842341,-799.0,0.00048683,2]
[394014462,1763185842351,-160.0,0.00048723,9]
[394014463,1763185842360,-1000.0,0.00048775,14]
[394014464,1763185842369,-1132.0,0.00048837,30]
[394014465,1763185842379,-1000.0,0.00048912,14]
[394014466,1763185842388,-500.0,0.00048932,90]
[394014467,1763185842397,-5157.51193414,0.00048935,28]
[394014469,1763185842406,-248.0,0.00048961,2]
[394014471,1763185842415,-248.0,0.00048964,120]
[394014473,1763185842424,-150.0,0.00049,120]
[394014474,1763185842434,-1350.0,0.00049,120]
[394014476,1763185842442,-33012.36,0.00049,120]
[394014477,1763185842451,-1000.0,0.00049049,14]
[394014478,1763185842460,-158.166004,0.00049063,7]
[394014479,1763185842469,-172.709939,0.00049105,7]
[394014480,1763185842478,-151.0,0.00049126,120]
[394014481,1763185842488,-269.026467,0.00049126,120]
[394014483,1763185842497,-182.216564,0.00049126,120]
[394014485,1763185842506,-182.216564,0.00049126,120]
[394014486,1763185842515,-182.216564,0.00049126,120]
[394014487,1763185842523,-182.216564,0.00049126,120]
[394014488,1763185842532,-1927.78629,0.00049126,120]
[394014489,1763185842541,-1927.78629,0.00049126,120]
[394014490,1763185842550,-1927.78629,0.00049126,120]
[394014491,1763185842558,-1927.78629,0.00049126,120]
[394014492,1763185842567,-151.0,0.00049126,120]
[394014494,1763185842576,-151.0,0.00049126,120]
[394014495,1763185842585,-152.965475,0.00049126,120]
[394014496,1763185842594,-151.0,0.00049126,120]
[394014497,1763185842603,-151.0,0.00049126,120]
[394014498,1763185842612,-151.0,0.00049126,120]
[394014499,1763185842621,-151.870863,0.00049126,120]
[394014500,1763185842630,-151.0,0.00049126,120]
[394014501,1763185842638,-151.0,0.00049126,120]
[394014502,1763185842647,-151.0,0.00049126,15]
[394014503,1763185842656,-151.701042,0.00049126,120]
[394014504,1763185842664,-152.141664,0.00049126,60]
[394014505,1763185842673,-151.0,0.00049126,120]
[394014506,1763185842683,-175.133877,0.00049126,120]
[394014507,1763185842692,-152.791829,0.00049126,30]
[394014508,1763185842701,-157.417713,0.00049126,95]
[394014509,1763185842710,-151.0,0.00049126,120]
[394014510,1763185842719,-151.0,0.00049126,120]
[394014511,1763185842727,-151.0,0.00049126,120]
[394014512,1763185842736,-151.0,0.00049126,120]
[394014513,1763185842745,-151.0,0.00049126,120]
[394014514,1763185842754,-151.0,0.00049126,120]
[394014515,1763185842763,-151.0,0.00049126,120]
[394014516,1763185842772,-154.360164,0.00049126,120]
[394014517,1763185842781,-494.460272,0.00049126,2]
[394014518,1763185842790,-494.460272,0.00049126,2]
[394014519,1763185842799,-494.460272,0.00049126,2]
[394014520,1763185842807,-494.460272,0.00049126,2]
[394014521,1763185842816,-152.057014,0.00049126,7]
[394014522,1763185842825,-165.521944,0.00049126,120]
[394014523,1763185842837,-151.0,0.00049126,120]
[394014524,1763185842847,-151.0,0.00049126,120]
[394014526,1763185842857,-500.0,0.00049167,60]
[394014527,1763185842866,-1000.0,0.00049186,14]
[394014528,1763185842875,-4000.0,0.000492,120]
[394014529,1763185842883,-158.166004,0.00049315,20]
[394014530,1763185842892,-999.0,0.00049315,120]
[394014531,1763185842901,-1000.0,0.00049323,14]
[394014532,1763185842910,-988.0,0.00049426,2]
[394014533,1763185842919,-629.0,0.00049426,2]
[394014534,1763185842929,-2149.0,0.00049426,2]
[394014535,1763185842937,-172.709939,0.0004946,60]
[394014536,1763185842946,-1000.0,0.0004946,14]
[394014537,1763185842955,-160.0,0.00049482,10]
[394014538,1763185842964,-248.0,0.00049511,7]
[394014539,1763185842973,-799.0,0.00049586,7]
[394014540,1763185842982,-199.0,0.00049589,18]
[394014541,1763185842991,-151.0,0.00049597,120]
[394014542,1763185843000,-1000.0,0.00049597,14]
[394014543,1763185843009,-780.0,0.00049597,14]
[394014544,1763185843018,-151.0,0.00049634,120]
[394014545,1763185843027,-151.0,0.00049634,120]
[394014546,1763185843036,-153.799581,0.00049634,120]
[394014547,1763185843045,-186.560179,0.00049634,120]
[394014548,1763185843054,-151.0,0.00049634,120]
[394014549,1763185843063,-16281.78,0.000497,50]
[394014550,1763185843072,-799.0,0.00049704,7]
[394014552,1763185843081,-1000.0,0.00049734,14]
[394014554,1763185843091,-607.58663355,0.000498,30]
[394014556,1763185843103,-1913.19,0.000498,14]
[394014557,1763185843112,-248.0,0.00049834,2]
[394014558,1763185843121,-799.0,0.0004985,2]
[394014559,1763185843131,-1000.0,0.00049871,14]
[394014560,1763185843140,-439183.61074155,0.000499,2]
[394014569,1763186262132,200000.00815277,0.00038898,10]
[394014570,1763186722394,436.72,0.00032878,120]
[394014770,1763187037877,-684.0,0.00025204,20]
[394014771,1763187037887,-209.05903665,0.00026282,2]
[394014772,1763187037897,-209.05903665,0.00031371,2]
[394014773,1763187037907,-330.04927629,0.00032861,2]
[394014774,1763187037916,-230.279919,0.0003298,2]
[394014775,1763187037925,-151.0,0.00035,120]
[394014776,1763187037936,-150.08,0.00036138,60]
[394014777,1763187037946,-150.08,0.00036138,60]
[394014778,1763187037955,-150.08,0.00036238,60]
[394014779,1763187037965,-150.08,0.00036338,60]
[394014780,1763187037974,-150.08,0.00036438,60]
[394014781,1763187037984,-209.05903665,0.00036461,2]
[394014782,1763187037993,-183.12790564,0.00036487,2]
[394014783,1763187038003,-150.08,0.00036538,60]
[394014784,1763187038013,-150.08,0.00036638,60]
[394014785,1763187038022,-150.08,0.00036738,60]
[394014786,1763187038032,-150.08,0.00036838,60]
[394014787,1763187038041,-150.08,0.00036938,60]
[394014788,1763187038051,-150.08,0.00037038,60]
[394014789,1763187038060,-150.08,0.00037138,60]
[394014790,1763187038070,-150.08,0.00037238,60]
[394014791,1763187038079,-150.08,0.00037338,60]
[394014792,1763187038089,-150.08,0.00037438,60]
[394014793,1763187038099,-150.08,0.00037538,60]
[394014794,1763187038109,-150.08,0.00037638,60]
[394014795,1763187038118,-150.08,0.00037738,60]
[394014796,1763187038128,-150.08,0.00037838,60]
[394014797,1763187038138,-150.08,0.00037938,60]
[394014798,1763187038148,-150.08,0.00038038,60]
[394014799,1763187038158,-150.08,0.00038138,60]
[394014800,1763187038167,-150.08,0.00038238,60]
[394014801,1763187038177,-150.08,0.00038338,60]
[394014802,1763187038187,-230.279919,0.00038357,2]
[394014803,1763187038196,-150.08,0.00038438,120]
[394014804,1763187038205,-150.08,0.00038538,120]
[394014805,1763187038215,-12316.73108573,0.00038538,2]
[394014806,1763187038228,-350.36,0.0003856,3]
[394014807,1763187038239,-194.83927083,0.00038569,15]
[394014808,1763187038248,-311.40048326,0.00038569,7]
[394014809,1763187038258,-890000.0,0.0003857,2]
[394014810,1763187038269,-1187.2530788,0.00038575,30]
[394014811,1763187038279,-4512.82294239,0.00038585,2]
[394014812,1763187038290,-1913.19,0.000386,14]
[394014813,1763187038302,-854821.469502,0.0003861,2]
[394014814,1763187038311,-150.25567808,0.00038638,120]
[394014815,1763187038322,-151.0,0.00038657,2]
[394014816,1763187038332,-151.0,0.00038657,2]
[394014817,1763187038342,-151.0,0.00038657,2]
[394014818,1763187038351,-151.0,0.00038657,2]
[394014819,1763187038361,-151.0,0.00038657,2]
[394014820,1763187038371,-151.0,0.00038657,2]
[394014821,1763187038381,-151.0,0.00038657,2]
[394014822,1763187038391,-151.0,0.00038657,2]
[394014823,1763187038400,-301.99999997,0.00038657,2]
[394014824,1763187038411,-541.81306743,0.0003866,3]
[394014825,1763187038421,-251.74576389,0.00038669,2]
[394014826,1763187038431,-734.83,0.0003867,3]
[394014827,1763187038442,-9752.63521374,0.0003867,3]
[394014828,1763187038452,-592.6063492,0.00038685,30]
[394014829,1763187038462,-1187.2530788,0.00038685,30]
[394014830,1763187038472,-593.6265394,0.00038685,30]
[394014831,1763187038483,-328.2910816,0.00038685,30]
[394014832,1763187038493,-600.6613539,0.00038685,30]
[394014833,1763187038503,-328.5257626,0.00038685,30]
[394014834,1763187038514,-593.6265394,0.00038685,30]
[394014835,1763187038525,-164.2628813,0.00038685,30]
[394014836,1763187038535,-1187.2530788,0.00038685,30]
[394014837,1763187038545,-300.4421106,0.00038685,30]
[394014838,1763187038555,-593.4565077,0.00038685,30]
[394014839,1763187038565,-541.81306743,0.00038872,3]
[394014840,1763187038576,-282.39,0.0003888,10]
[394014841,1763187038586,-15458.0,0.00038882,10]
[394014842,1763187038596,-230.279919,0.0003889,20]
[394014843,1763187038606,-1206.76491664,0.0003899,2]
[394014844,1763187038616,-300.0,0.00039453,90]
[394014845,1763187038626,-300.0,0.00039453,90]
[394014846,1763187038637,-300.0,0.00039453,90]
[394014847,1763187038647,-300.0,0.00039453,90]
[394014848,1763187038657,-300.0,0.00039453,90]
[394014849,1763187038892,-300.0,0.00039453,90]
[394014850,1763187038902,-300.0,0.00039453,90]
[394014851,1763187038914,-300.0,0.00039453,90]
[394014852,1763187038923,-241.43474671,0.000396,120]
[394014853,1763187038933,-164.7457295,0.000396,120]
[394014854,1763187038943,-185.97451896,0.000396,120]
[394014855,1763187038953,-2000.0,0.0003995,21]
[394014856,1763187038963,-5000.0,0.0004,10]
[394014857,1763187038972,-4204.0,0.0004,30]
[394014858,1763187038982,-1000.0,0.00040217,2]
[394014859,1763187038992,-1000.0,0.00040217,2]
[394014860,1763187039001,-1000.0,0.00040217,2]
[394014861,1763187039011,-1000.0,0.00040217,2]
[394014862,1763187039020,-1000.0,0.00040217,2]
[394014863,1763187039029,-1000.0,0.00040217,2]
[394014864,1763187039039,-1000.0,0.00040217,2]
[394014865,1763187039048,-1000.0,0.00040217,2]
[394014866,1763187039058,-1000.0,0.00040217,2]
[394014867,1763187039068,-1000.0,0.00040217,2]
[394014868,1763187039077,-1000.0,0.00040217,2]
[394014869,1763187039087,-191.02999714,0.00040217,2]
[394014870,1763187039097,-151.0,0.00041,120]
[394014871,1763187039107,-999.0,0.00041095,120]
[394014872,1763187039116,-500.0,0.00041096,120]
[394014873,1763187039126,-183.61852445,0.00041096,2]
[394014874,1763187039136,-4512.82294237,0.00041356,28]
[394014875,1763187039147,-500.0,0.0004137,120]
[394014876,1763187039157,-209.05903665,0.0004155,2]
[394014877,1763187039167,-164.2237678,0.00041589,30]
[394014878,1763187039178,-500.0,0.00041644,120]
[394014879,1763187039189,-248.0,0.00041757,2]
[394014880,1763187039199,-1913.19,0.000418,14]
[394014881,1763187039210,-151.0,0.000419,19]
[394014882,1763187039224,-500.0,0.00041918,120]
[394014883,1763187039234,-248.0,0.00042081,120]
[394014884,1763187039244,-248.0,0.00042122,2]
[394014885,1763187039254,-248.0,0.00042165,2]
[394014886,1763187039265,-500.0,0.00042192,120]
[394014887,1763187039275,-151.0,0.000423,17]
[394014888,1763187039284,-500.0,0.00042466,120]
[394014889,1763187039296,-406.49,0.0004263,15]
[394014890,1763187039305,-248.0,0.00042636,120]
[394014891,1763187039315,-248.0,0.00042739,2]
[394014892,1763187039324,-500.0,0.0004274,120]
[394014893,1763187039333,-151.0,0.000428,11]
[394014894,1763187039343,-248.0,0.00042851,7]
[394014895,1763187039352,-230.279919,0.00042866,20]
[394014896,1763187039362,-646.0,0.0004293,7]
[394014897,1763187039371,-500.0,0.00043014,120]
[394014898,1763187039381,-248.0,0.00043214,7]
[394014899,1763187039390,-1966.4424,0.0004322,30]
[394014900,1763187039400,-248.0,0.00043228,2]
[394014901,1763187039410,-500.0,0.00043288,120]
[394014902,1763187039420,-248.0,0.00043332,7]
[394014903,1763187039429,-359.40697938,0.00043348,29]
[394014904,1763187039439,-646.0,0.00043473,2]
[394014905,1763187039449,-1913.19,0.000435,14]
[394014906,1763187039459,-500.0,0.00043562,120]
[394014907,1763187039468,-710.97719485,0.00043562,120]
[394014908,1763187039478,-646.0,0.00043677,2]
[394014909,1763187039487,-230.279919,0.00043735,2]
[394014910,1763187039497,-646.0,0.000438,2]
[394014911,1763187039507,-1000.0,0.000438,90]
[394014912,1763187039516,-646.0,0.0004381,7]
[394014913,1763187039526,-999.0,0.00043835,120]
[394014914,1763187039535,-500.0,0.00043836,120]
[394014915,1763187039544,-457.76,0.00044109,14]
[394014916,1763187039554,-500.0,0.0004411,120]
[394014917,1763187039564,-4512.82294237,0.00044127,28]
[394014918,1763187039574,-500.0,0.00044384,120]
[394014919,1763187039584,-646.0,0.00044644,30]
[394014920,1763187039593,-500.0,0.00044658,120]
[394014921,1763187039603,-4426.0,0.00044836,120]
[394014922,1763187039613,-500.0,0.00044932,120]
[394014923,1763187039623,-646.0,0.00045018,120]
[394014924,1763187039633,-160.0,0.00045037,3]
[394014925,1763187039643,-500.0,0.00045205,120]
[394014927,1763187039654,-457.76,0.00045479,15]
[394014928,1763187039664,-500.0,0.00045479,120]
[394014929,1763187039674,-646.0,0.00045557,120]
[394014930,1763187039684,-500.0,0.00045753,120]
[394014931,1763187039694,-1913.19,0.000458,14]
[394014932,1763187039704,-164.2628813,0.00045831,30]
[394014933,1763187039713,-646.0,0.0004594,30]
[394014934,1763187039723,-646.0,0.00045951,7]